[Event "Titled Tuesday Blitz July 4 Late 2023"]
[White "Kielinkei"]
[Black "Ganiev, Roman"]
[BlackFideId "4131452"]
[WhiteElo "2425"]
[BlackElo "2625"]
[Result "0-1"]
[Round "5"]
[TimeControl "180+2"]
[Date "2023.07.04"]
[WhiteClock "0:00:00"]
[BlackClock "0:00:15"]
[Board "77"]

1. e4 {[%clk 0:03:00]}  c5 {[%clk 0:02:57]} 2. c3 {[%clk 0:03:00]}  Nf6 {[%clk 0:02:56]} 3. e5 {[%clk 0:03:00]}  Nd5 {[%clk 0:02:56]} 4. d4 {[%clk 0:03:01]}  cxd4 {[%clk 0:02:57]} 5. Nf3 {[%clk 0:03:00]}  Nc6 {[%clk 0:02:55]} 6. Bc4 {[%clk 0:02:55]}  e6 {[%clk 0:02:52]} 7. cxd4 {[%clk 0:02:53]}  Be7 {[%clk 0:02:51]} 8. Nc3 {[%clk 0:02:47]}  Nxc3 {[%clk 0:02:49]} 9. bxc3 {[%clk 0:02:48]}  d6 {[%clk 0:02:50]} 10. exd6 {[%clk 0:02:45]}  Qxd6 {[%clk 0:02:51]} 11. O-O {[%clk 0:02:44]}  O-O {[%clk 0:02:51]} 12. a4 {[%clk 0:02:43]}  Na5 {[%clk 0:02:49]} 13. Ba3 {[%clk 0:02:38]}  Qd8 {[%clk 0:02:48]} 14. Bxe7 {[%clk 0:02:38]}  Qxe7 {[%clk 0:02:49]} 15. Bd3 {[%clk 0:02:35]}  h6 {[%clk 0:02:48]} 16. Qe2 {[%clk 0:02:33]}  Qf6 {[%clk 0:02:43]} 17. Qe4 {[%clk 0:02:24]}  g6 {[%clk 0:02:43]} 18. Ne5 {[%clk 0:02:21]}  Rd8 {[%clk 0:02:36]} 19. Rfe1 {[%clk 0:02:04]}  Bd7 {[%clk 0:02:36]} 20. Re3 {[%clk 0:01:58]}  Bc6 {[%clk 0:02:33]} 21. Nxc6 {[%clk 0:01:32]}  Nxc6 {[%clk 0:02:30]} 22. Rb1 {[%clk 0:01:29]}  Rd7 {[%clk 0:02:22]} 23. h4 {[%clk 0:01:17]}  h5 {[%clk 0:02:18]} 24. Rf3 {[%clk 0:01:15]}  Qg7 {[%clk 0:02:14]} 25. Bb5 {[%clk 0:01:08]}  Rc8 {[%clk 0:01:59]} 26. a5 {[%clk 0:00:59]}  Rdc7 {[%clk 0:01:17]} 27. a6 {[%clk 0:00:53]}  bxa6 {[%clk 0:01:16]} 28. Bxa6 {[%clk 0:00:52]}  Rd8 {[%clk 0:01:17]} 29. Bb5 {[%clk 0:00:38]}  Ne7 {[%clk 0:01:17]} 30. Ba4 {[%clk 0:00:17]}  Nd5 {[%clk 0:01:17]} 31. Qe1 {[%clk 0:00:17]}  Rdc8 {[%clk 0:01:15]} 32. Rb3 {[%clk 0:00:10]}  Nb6 {[%clk 0:01:12]} 33. Bb5 {[%clk 0:00:09]}  Qh6 {[%clk 0:01:08]} 34. Ra3 {[%clk 0:00:08]}  Rd8 {[%clk 0:01:07]} 35. Bf1 {[%clk 0:00:08]}  Qf8 {[%clk 0:01:04]} 36. Qa1 {[%clk 0:00:07]}  Qe7 {[%clk 0:01:03]} 37. g3 {[%clk 0:00:05]}  Nd5 {[%clk 0:01:00]} 38. Rd3 {[%clk 0:00:05]}  Nf6 {[%clk 0:01:00]} 39. Bg2 {[%clk 0:00:05]}  Rdc8 {[%clk 0:00:59]} 40. Rb3 {[%clk 0:00:05]}  Ng4 {[%clk 0:00:58]} 41. Qb2 {[%clk 0:00:05]}  a5 {[%clk 0:00:57]} 42. Bf3 {[%clk 0:00:04]}  Nf6 {[%clk 0:00:56]} 43. Re3 {[%clk 0:00:05]}  Qd6 {[%clk 0:00:55]} 44. Ra3 {[%clk 0:00:05]}  Ra7 {[%clk 0:00:54]} 45. Qa2 {[%clk 0:00:05]}  Qb6 {[%clk 0:00:49]} 46. Re5 {[%clk 0:00:04]}  Rac7 {[%clk 0:00:38]} 47. Rexa5 {[%clk 0:00:02]}  Rxc3 {[%clk 0:00:38]} 48. Rxc3 {[%clk 0:00:03]}  Rxc3 {[%clk 0:00:38]} 49. d5 {[%clk 0:00:03]}  exd5 {[%clk 0:00:36]} 50. Bxd5 {[%clk 0:00:04]}  Rxg3+ {[%clk 0:00:30]} 51. Kh2 {[%clk 0:00:03]}  Rg4 {[%clk 0:00:29]} 52. Bxf7+ {[%clk 0:00:03]}  Kg7 {[%clk 0:00:22]} 53. Ra7 {[%clk 0:00:04]}  Rxh4+ {[%clk 0:00:21]} 54. Kg1 {[%clk 0:00:04]}  Rg4+ {[%clk 0:00:20]} 55. Kf1 {[%clk 0:00:01]}  Kh6 {[%clk 0:00:18]} 56. Bc4 {[%clk 0:00:00]}  Qd4 {[%clk 0:00:15]} 0-1


[Site "https://www.chess.com"]

[Event "Titled Tuesday Blitz July 4 Late 2023"]
[White "Castella Garcia, Fausto"]
[Black "Sargsyan, Anna M."]
[WhiteFideId "3501922"]
[BlackFideId "13308130"]
[WhiteElo "2419"]
[BlackElo "2590"]
[Result "0-1"]
[Round "5"]
[TimeControl "180+2"]
[Date "2023.07.04"]
[WhiteClock "0:00:23"]
[BlackClock "0:00:05"]
[Board "81"]

1. e4 {[%clk 0:03:00]}  c6 {[%clk 0:02:58]} 2. Nc3 {[%clk 0:02:59]}  d5 {[%clk 0:02:59]} 3. Nf3 {[%clk 0:02:59]}  Bg4 {[%clk 0:02:58]} 4. h3 {[%clk 0:02:59]}  Bxf3 {[%clk 0:02:57]} 5. Qxf3 {[%clk 0:02:59]}  Nf6 {[%clk 0:02:57]} 6. d4 {[%clk 0:02:59]}  dxe4 {[%clk 0:02:56]} 7. Nxe4 {[%clk 0:03:00]}  Nbd7 {[%clk 0:02:53]} 8. Bd3 {[%clk 0:03:00]}  Nxe4 {[%clk 0:02:51]} 9. Qxe4 {[%clk 0:02:59]}  Nf6 {[%clk 0:02:52]} 10. Qh4 {[%clk 0:02:56]}  e6 {[%clk 0:02:52]} 11. O-O {[%clk 0:02:55]}  Be7 {[%clk 0:02:52]} 12. Bg5 {[%clk 0:02:55]}  h6 {[%clk 0:02:51]} 13. c3 {[%clk 0:02:55]}  Qb6 {[%clk 0:02:50]} 14. a4 {[%clk 0:02:21]}  Qxb2 {[%clk 0:02:39]} 15. Rfc1 {[%clk 0:01:32]}  Qb6 {[%clk 0:02:20]} 16. a5 {[%clk 0:01:29]}  Qc7 {[%clk 0:02:20]} 17. a6 {[%clk 0:01:25]}  b6 {[%clk 0:02:19]} 18. c4 {[%clk 0:01:21]}  Qd7 {[%clk 0:02:14]} 19. d5 {[%clk 0:01:12]}  Nxd5 {[%clk 0:02:11]} 20. Bxe7 {[%clk 0:00:55]}  Nxe7 {[%clk 0:01:59]} 21. Rd1 {[%clk 0:00:52]}  Qc7 {[%clk 0:01:56]} 22. Qe4 {[%clk 0:00:44]}  Ng6 {[%clk 0:01:52]} 23. c5 {[%clk 0:00:41]}  bxc5 {[%clk 0:01:48]} 24. Rab1 {[%clk 0:00:38]}  O-O {[%clk 0:01:46]} 25. Rb7 {[%clk 0:00:37]}  Qe5 {[%clk 0:01:37]} 26. Qxc6 {[%clk 0:00:35]}  Nf4 {[%clk 0:01:34]} 27. Bf1 {[%clk 0:00:34]}  Ne2+ {[%clk 0:00:54]} 28. Kh1 {[%clk 0:00:33]}  Nd4 {[%clk 0:00:54]} 29. Qc7 {[%clk 0:00:30]}  Qxc7 {[%clk 0:00:49]} 30. Rxc7 {[%clk 0:00:31]}  Rfc8 {[%clk 0:00:49]} 31. Rb7 {[%clk 0:00:30]}  e5 {[%clk 0:00:48]} 32. Bc4 {[%clk 0:00:30]}  Rf8 {[%clk 0:00:43]} 33. Re1 {[%clk 0:00:30]}  Nc6 {[%clk 0:00:36]} 34. Bd5 {[%clk 0:00:30]}  Nb4 {[%clk 0:00:36]} 35. Bc4 {[%clk 0:00:29]}  Rae8 {[%clk 0:00:29]} 36. Rxa7 {[%clk 0:00:28]}  Ra8 {[%clk 0:00:29]} 37. Bxf7+ {[%clk 0:00:27]}  Kh7 {[%clk 0:00:30]} 38. Rxa8 {[%clk 0:00:27]}  Rxa8 {[%clk 0:00:31]} 39. Bc4 {[%clk 0:00:27]}  Nxa6 {[%clk 0:00:28]} 40. Rxe5 {[%clk 0:00:27]}  Nc7 {[%clk 0:00:17]} 41. Rxc5 {[%clk 0:00:27]}  Ne8 {[%clk 0:00:17]} 42. f4 {[%clk 0:00:27]}  Nf6 {[%clk 0:00:17]} 43. Bd3+ {[%clk 0:00:27]}  Kg8 {[%clk 0:00:16]} 44. Kh2 {[%clk 0:00:27]}  Ra3 {[%clk 0:00:13]} 45. Bg6 {[%clk 0:00:27]}  Kf8 {[%clk 0:00:14]} 46. Rc7 {[%clk 0:00:26]}  Ra4 {[%clk 0:00:12]} 47. Kg3 {[%clk 0:00:26]}  Ra3+ {[%clk 0:00:05]} 48. Kf2 {[%clk 0:00:26]}  Ra2+ {[%clk 0:00:05]} 49. Kf3 {[%clk 0:00:26]}  Ra3+ {[%clk 0:00:06]} 50. Ke2 {[%clk 0:00:27]}  Ra2+ {[%clk 0:00:06]} 51. Kd3 {[%clk 0:00:27]}  Rxg2 {[%clk 0:00:06]} 52. Kd4 {[%clk 0:00:28]}  Rxg6 {[%clk 0:00:05]} 53. Ke5 {[%clk 0:00:28]}  Rg1 {[%clk 0:00:04]} 54. f5 {[%clk 0:00:26]}  Re1+ {[%clk 0:00:04]} 55. Kf4 {[%clk 0:00:27]}  Kg8 {[%clk 0:00:05]} 56. Rc8+ {[%clk 0:00:26]}  Kh7 {[%clk 0:00:05]} 57. Rc7 {[%clk 0:00:23]}  Nd5+ {[%clk 0:00:05]} 0-1


[Site "https://www.chess.com"]

[Event "Titled Tuesday Blitz July 4 Late 2023"]
[White "Melikhov, Evgeny V."]
[Black "Jaskolka, Tomasz"]
[WhiteFideId "4122046"]
[BlackFideId "1170791"]
[WhiteElo "2407"]
[BlackElo "2578"]
[Result "1/2-1/2"]
[Round "5"]
[TimeControl "180+2"]
[Date "2023.07.04"]
[WhiteClock "0:00:03"]
[BlackClock "0:00:05"]
[Board "83"]

1. d4 {[%clk 0:03:00]}  d5 {[%clk 0:03:00]} 2. c4 {[%clk 0:03:00]}  e5 {[%clk 0:03:00]} 3. dxe5 {[%clk 0:03:00]}  d4 {[%clk 0:03:01]} 4. Nf3 {[%clk 0:03:00]}  Nc6 {[%clk 0:03:02]} 5. g3 {[%clk 0:03:00]}  Nge7 {[%clk 0:03:02]} 6. Bg2 {[%clk 0:02:59]}  Ng6 {[%clk 0:03:02]} 7. Bg5 {[%clk 0:02:56]}  Be7 {[%clk 0:03:01]} 8. Bxe7 {[%clk 0:02:54]}  Qxe7 {[%clk 0:03:02]} 9. O-O {[%clk 0:02:50]}  O-O {[%clk 0:02:59]} 10. Nbd2 {[%clk 0:02:25]}  Ngxe5 {[%clk 0:02:57]} 11. Nxe5 {[%clk 0:02:21]}  Qxe5 {[%clk 0:02:58]} 12. Nf3 {[%clk 0:02:19]}  Qc5 {[%clk 0:02:58]} 13. Rc1 {[%clk 0:02:15]}  Be6 {[%clk 0:02:47]} 14. a3 {[%clk 0:01:52]}  a5 {[%clk 0:02:46]} 15. Qb3 {[%clk 0:01:42]}  a4 {[%clk 0:02:28]} 16. Qb5 {[%clk 0:01:40]}  Ra5 {[%clk 0:02:10]} 17. Qxb7 {[%clk 0:01:26]}  Rb8 {[%clk 0:02:08]} 18. Qxc7 {[%clk 0:01:25]}  Ra7 {[%clk 0:02:09]} 19. Qf4 {[%clk 0:01:25]}  Rxb2 {[%clk 0:02:06]} 20. Rb1 {[%clk 0:00:56]}  Rab7 {[%clk 0:01:54]} 21. Rxb2 {[%clk 0:00:55]}  Rxb2 {[%clk 0:01:55]} 22. Rd1 {[%clk 0:00:41]}  Qxa3 {[%clk 0:01:21]} 23. Nxd4 {[%clk 0:00:37]}  Nxd4 {[%clk 0:01:17]} 24. Qxd4 {[%clk 0:00:35]}  Rb8 {[%clk 0:00:49]} 25. c5 {[%clk 0:00:29]}  g6 {[%clk 0:00:44]} 26. c6 {[%clk 0:00:28]}  Qb3 {[%clk 0:00:39]} 27. Bd5 {[%clk 0:00:22]}  Bxd5 {[%clk 0:00:24]} 28. Qxd5 {[%clk 0:00:22]}  Qxd5 {[%clk 0:00:24]} 29. Rxd5 {[%clk 0:00:21]}  Rc8 {[%clk 0:00:24]} 30. Ra5 {[%clk 0:00:21]}  Rxc6 {[%clk 0:00:24]} 31. Rxa4 {[%clk 0:00:21]}  Kg7 {[%clk 0:00:25]} 32. Kg2 {[%clk 0:00:20]}  h5 {[%clk 0:00:25]} 33. h4 {[%clk 0:00:20]}  Rb6 {[%clk 0:00:25]} 34. e4 {[%clk 0:00:20]}  Rc6 {[%clk 0:00:25]} 35. e5 {[%clk 0:00:20]}  Rb6 {[%clk 0:00:22]} 36. Ra5 {[%clk 0:00:19]}  Rc6 {[%clk 0:00:22]} 37. Rd5 {[%clk 0:00:18]}  Rb6 {[%clk 0:00:21]} 38. f4 {[%clk 0:00:18]}  Kf8 {[%clk 0:00:19]} 39. Kf3 {[%clk 0:00:15]}  Ke7 {[%clk 0:00:19]} 40. Ra5 {[%clk 0:00:15]}  Ke6 {[%clk 0:00:18]} 41. Ra3 {[%clk 0:00:14]}  Rc6 {[%clk 0:00:18]} 42. Rd3 {[%clk 0:00:14]}  Rb6 {[%clk 0:00:18]} 43. g4 {[%clk 0:00:13]}  hxg4+ {[%clk 0:00:15]} 44. Kxg4 {[%clk 0:00:13]}  Rb1 {[%clk 0:00:15]} 45. h5 {[%clk 0:00:11]}  Rg1+ {[%clk 0:00:14]} 46. Kh4 {[%clk 0:00:08]}  Rh1+ {[%clk 0:00:14]} 47. Kg4 {[%clk 0:00:06]}  Rxh5 {[%clk 0:00:13]} 48. Rd6+ {[%clk 0:00:06]}  Ke7 {[%clk 0:00:13]} 49. Ra6 {[%clk 0:00:05]}  Rh1 {[%clk 0:00:14]} 50. Kf3 {[%clk 0:00:04]}  Rf1+ {[%clk 0:00:13]} 51. Ke4 {[%clk 0:00:05]}  Re1+ {[%clk 0:00:13]} 52. Kf3 {[%clk 0:00:05]}  Kf8 {[%clk 0:00:10]} 53. Kg4 {[%clk 0:00:04]}  Kg7 {[%clk 0:00:10]} 54. Ra7 {[%clk 0:00:04]}  Kg8 {[%clk 0:00:08]} 55. Kg5 {[%clk 0:00:04]}  Kg7 {[%clk 0:00:06]} 56. Kg4 {[%clk 0:00:03]}  Kf8 {[%clk 0:00:05]} 57. Kg5 {[%clk 0:00:03]}  Kg7 {[%clk 0:00:05]} 58. Kg4 {[%clk 0:00:03]} 1/2-1/2


[Site "https://www.chess.com"]

[Event "Titled Tuesday Blitz July 4 Late 2023"]
[White "Carrasco Miranda, Andres"]
[Black "Ovchinnikov, Vsevolod"]
[WhiteFideId "3405990"]
[BlackFideId "24176842"]
[WhiteElo "2404"]
[BlackElo "2575"]
[Result "0-1"]
[Round "5"]
[TimeControl "180+2"]
[Date "2023.07.04"]
[WhiteClock "0:00:33"]
[BlackClock "0:00:14"]
[Board "84"]

1. d4 {[%clk 0:02:57]}  d5 {[%clk 0:02:59]} 2. c4 {[%clk 0:02:56]}  dxc4 {[%clk 0:03:00]} 3. e4 {[%clk 0:02:55]}  c5 {[%clk 0:02:57]} 4. d5 {[%clk 0:02:53]}  e6 {[%clk 0:02:58]} 5. Bxc4 {[%clk 0:02:52]}  exd5 {[%clk 0:02:58]} 6. Bxd5 {[%clk 0:02:49]}  Nc6 {[%clk 0:02:54]} 7. Bxc6+ {[%clk 0:02:47]}  bxc6 {[%clk 0:02:55]} 8. Qxd8+ {[%clk 0:02:47]}  Kxd8 {[%clk 0:02:56]} 9. Nf3 {[%clk 0:02:47]}  Nf6 {[%clk 0:02:54]} 10. Nc3 {[%clk 0:02:46]}  Be6 {[%clk 0:02:17]} 11. O-O {[%clk 0:02:43]}  h6 {[%clk 0:02:15]} 12. Ne5 {[%clk 0:02:35]}  Kc7 {[%clk 0:02:15]} 13. b3 {[%clk 0:02:26]}  Bd6 {[%clk 0:02:02]} 14. Nc4 {[%clk 0:02:19]}  Bxc4 {[%clk 0:01:54]} 15. bxc4 {[%clk 0:02:20]}  Be5 {[%clk 0:01:55]} 16. Bd2 {[%clk 0:02:19]}  Rad8 {[%clk 0:01:12]} 17. f4 {[%clk 0:02:09]}  Bd4+ {[%clk 0:00:57]} 18. Kh1 {[%clk 0:02:08]}  Rhe8 {[%clk 0:00:56]} 19. e5 {[%clk 0:02:04]}  Ng4 {[%clk 0:00:52]} 20. h3 {[%clk 0:02:02]}  Ne3 {[%clk 0:00:40]} 21. Bxe3 {[%clk 0:01:50]}  Bxe3 {[%clk 0:00:41]} 22. Ne4 {[%clk 0:01:37]}  Rd4 {[%clk 0:00:27]} 23. Ng3 {[%clk 0:01:37]}  Rxf4 {[%clk 0:00:19]} 24. Nf5 {[%clk 0:01:27]}  Rxf1+ {[%clk 0:00:13]} 25. Rxf1 {[%clk 0:01:28]}  Rxe5 {[%clk 0:00:13]} 26. Nxe3 {[%clk 0:01:24]}  Rxe3 {[%clk 0:00:14]} 27. Rxf7+ {[%clk 0:01:24]}  Kb6 {[%clk 0:00:15]} 28. Rxg7 {[%clk 0:01:22]}  Re4 {[%clk 0:00:13]} 29. Rg6 {[%clk 0:00:51]}  Rxc4 {[%clk 0:00:13]} 30. Rxh6 {[%clk 0:00:52]}  Rc1+ {[%clk 0:00:13]} 31. Kh2 {[%clk 0:00:52]}  c4 {[%clk 0:00:14]} 32. Rh4 {[%clk 0:00:49]}  Kb5 {[%clk 0:00:14]} 33. a3 {[%clk 0:00:45]}  a5 {[%clk 0:00:12]} 34. Rf4 {[%clk 0:00:40]}  c3 {[%clk 0:00:12]} 35. h4 {[%clk 0:00:40]}  c2 {[%clk 0:00:10]} 36. Rf2 {[%clk 0:00:40]}  Rh1+ {[%clk 0:00:07]} 37. Kxh1 {[%clk 0:00:41]}  c1=Q+ {[%clk 0:00:08]} 38. Kh2 {[%clk 0:00:40]}  Qxa3 {[%clk 0:00:08]} 39. g3 {[%clk 0:00:32]}  Qe3 {[%clk 0:00:08]} 40. Rf4 {[%clk 0:00:31]}  a4 {[%clk 0:00:08]} 41. h5 {[%clk 0:00:32]}  a3 {[%clk 0:00:07]} 42. h6 {[%clk 0:00:30]}  a2 {[%clk 0:00:07]} 43. h7 {[%clk 0:00:29]}  a1=Q {[%clk 0:00:06]} 44. Rh4 {[%clk 0:00:28]}  Qh8 {[%clk 0:00:06]} 45. Rh5+ {[%clk 0:00:28]}  c5 {[%clk 0:00:06]} 46. Kh3 {[%clk 0:00:27]}  Kb4 {[%clk 0:00:07]} 47. Kh4 {[%clk 0:00:28]}  c4 {[%clk 0:00:07]} 48. g4 {[%clk 0:00:28]}  c3 {[%clk 0:00:07]} 49. g5 {[%clk 0:00:29]}  Qf4+ {[%clk 0:00:08]} 50. Kh3 {[%clk 0:00:28]}  Qf3+ {[%clk 0:00:09]} 51. Kh4 {[%clk 0:00:29]}  Qxh5+ {[%clk 0:00:09]} 52. Kxh5 {[%clk 0:00:30]}  Qxh7+ {[%clk 0:00:10]} 53. Kg4 {[%clk 0:00:30]}  Qg6 {[%clk 0:00:11]} 54. Kf4 {[%clk 0:00:30]}  c2 {[%clk 0:00:12]} 55. Ke3 {[%clk 0:00:31]}  c1=Q+ {[%clk 0:00:12]} 56. Kd4 {[%clk 0:00:31]}  Qc4+ {[%clk 0:00:12]} 57. Ke3 {[%clk 0:00:31]}  Qgd3+ {[%clk 0:00:12]} 58. Kf2 {[%clk 0:00:32]}  Qcc2+ {[%clk 0:00:13]} 59. Kg1 {[%clk 0:00:33]}  Qdd1# {[%clk 0:00:14]} 0-1


[Site "https://www.chess.com"]

[Event "Titled Tuesday Blitz July 4 Late 2023"]
[White "Petesch, Gabriel"]
[Black "Gombocz, Ferenc Jr."]
[WhiteFideId "2032465"]
[BlackFideId "775029"]
[WhiteElo "2558"]
[BlackElo "2396"]
[Result "0-1"]
[Round "5"]
[TimeControl "180+2"]
[Date "2023.07.04"]
[WhiteClock "0:00:03"]
[BlackClock "0:00:40"]
[Board "85"]

1. Nf3 {[%clk 0:03:00]}  d5 {[%clk 0:02:57]} 2. d4 {[%clk 0:03:00]}  Nf6 {[%clk 0:02:56]} 3. Nc3 {[%clk 0:02:59]}  c5 {[%clk 0:02:50]} 4. Bg5 {[%clk 0:02:50]}  Ne4 {[%clk 0:02:47]} 5. Be3 {[%clk 0:02:42]}  Nxc3 {[%clk 0:02:43]} 6. bxc3 {[%clk 0:02:40]}  c4 {[%clk 0:02:44]} 7. g3 {[%clk 0:02:38]}  Nc6 {[%clk 0:02:44]} 8. Bg2 {[%clk 0:02:37]}  Bf5 {[%clk 0:02:43]} 9. O-O {[%clk 0:02:34]}  e6 {[%clk 0:02:42]} 10. Qd2 {[%clk 0:02:32]}  Bd6 {[%clk 0:02:41]} 11. Nh4 {[%clk 0:02:31]}  Bg4 {[%clk 0:02:38]} 12. Rfb1 {[%clk 0:02:29]}  Rb8 {[%clk 0:02:34]} 13. a4 {[%clk 0:02:28]}  O-O {[%clk 0:02:33]} 14. h3 {[%clk 0:02:20]}  Bh5 {[%clk 0:02:31]} 15. Nf3 {[%clk 0:02:21]}  Bg6 {[%clk 0:02:30]} 16. Ne1 {[%clk 0:02:17]}  b6 {[%clk 0:02:29]} 17. Bf4 {[%clk 0:02:11]}  Bxf4 {[%clk 0:02:25]} 18. Qxf4 {[%clk 0:02:10]}  Qe7 {[%clk 0:02:23]} 19. e4 {[%clk 0:02:06]}  e5 {[%clk 0:02:18]} 20. dxe5 {[%clk 0:02:05]}  d4 {[%clk 0:02:18]} 21. Nf3 {[%clk 0:01:38]}  dxc3 {[%clk 0:01:59]} 22. Bf1 {[%clk 0:01:25]}  f6 {[%clk 0:01:55]} 23. Bxc4+ {[%clk 0:01:21]}  Kh8 {[%clk 0:01:55]} 24. e6 {[%clk 0:01:15]}  Qc5 {[%clk 0:01:35]} 25. Bd5 {[%clk 0:01:06]}  Ne5 {[%clk 0:01:33]} 26. Nh4 {[%clk 0:00:55]}  a6 {[%clk 0:01:25]} 27. Rd1 {[%clk 0:00:47]}  Bh5 {[%clk 0:01:20]} 28. g4 {[%clk 0:00:33]}  g5 {[%clk 0:01:19]} 29. Qe3 {[%clk 0:00:31]}  Qxe3 {[%clk 0:01:03]} 30. fxe3 {[%clk 0:00:32]}  Bxg4 {[%clk 0:01:02]} 31. hxg4 {[%clk 0:00:27]}  gxh4 {[%clk 0:01:02]} 32. Kg2 {[%clk 0:00:18]}  Nxg4 {[%clk 0:01:01]} 33. Rd3 {[%clk 0:00:11]}  Rg8 {[%clk 0:01:00]} 34. e7 {[%clk 0:00:08]}  Rg7 {[%clk 0:01:00]} 35. Be6 {[%clk 0:00:06]}  Ne5+ {[%clk 0:00:58]} 36. Kh3 {[%clk 0:00:05]}  Nxd3 {[%clk 0:00:58]} 37. cxd3 {[%clk 0:00:05]}  Rxe7 {[%clk 0:00:58]} 38. Bc4 {[%clk 0:00:05]}  b5 {[%clk 0:00:56]} 39. axb5 {[%clk 0:00:06]}  axb5 {[%clk 0:00:57]} 40. Bd5 {[%clk 0:00:06]}  b4 {[%clk 0:00:57]} 41. Bb3 {[%clk 0:00:06]}  Rd7 {[%clk 0:00:56]} 42. Rd1 {[%clk 0:00:06]}  Rc7 {[%clk 0:00:55]} 43. Rc1 {[%clk 0:00:05]}  Rd8 {[%clk 0:00:54]} 44. d4 {[%clk 0:00:05]}  Re8 {[%clk 0:00:54]} 45. Bd5 {[%clk 0:00:05]}  c2 {[%clk 0:00:52]} 46. Bb3 {[%clk 0:00:05]}  Rxe4 {[%clk 0:00:51]} 47. Kg2 {[%clk 0:00:03]}  Rxe3 {[%clk 0:00:51]} 48. Bd5 {[%clk 0:00:02]}  b3 {[%clk 0:00:50]} 49. Kf2 {[%clk 0:00:02]}  b2 {[%clk 0:00:50]} 50. Rg1 {[%clk 0:00:03]}  Rg3 {[%clk 0:00:48]} 51. Re1 {[%clk 0:00:03]}  c1=Q {[%clk 0:00:42]} 52. Re8+ {[%clk 0:00:03]}  Kg7 {[%clk 0:00:40]} 53. Rf8 {[%clk 0:00:03]} 0-1


[Site "https://www.chess.com"]

[Event "Titled Tuesday Blitz July 4 Late 2023"]
[White "Prieto Aranguren, Alain"]
[Black "Przybylski, Wojciech"]
[WhiteFideId "2268906"]
[BlackFideId "1117599"]
[WhiteElo "2387"]
[BlackElo "2557"]
[Result "0-1"]
[Round "5"]
[TimeControl "180+2"]
[Date "2023.07.04"]
[WhiteClock "0:00:00"]
[BlackClock "0:00:09"]
[Board "86"]

1. d4 {[%clk 0:02:52]}  d5 {[%clk 0:02:58]} 2. c4 {[%clk 0:02:51]}  e6 {[%clk 0:02:58]} 3. Nc3 {[%clk 0:02:50]}  Nf6 {[%clk 0:02:58]} 4. cxd5 {[%clk 0:02:50]}  exd5 {[%clk 0:02:58]} 5. Bg5 {[%clk 0:02:49]}  Nbd7 {[%clk 0:02:57]} 6. e3 {[%clk 0:02:48]}  c6 {[%clk 0:02:56]} 7. Bd3 {[%clk 0:02:48]}  Be7 {[%clk 0:02:55]} 8. Nf3 {[%clk 0:02:49]}  O-O {[%clk 0:02:55]} 9. O-O {[%clk 0:02:49]}  Re8 {[%clk 0:02:55]} 10. Rb1 {[%clk 0:02:46]}  a5 {[%clk 0:02:53]} 11. Qc2 {[%clk 0:02:46]}  Nf8 {[%clk 0:02:52]} 12. Ne5 {[%clk 0:02:43]}  Ng6 {[%clk 0:02:49]} 13. Nxg6 {[%clk 0:02:39]}  fxg6 {[%clk 0:02:47]} 14. Na4 {[%clk 0:02:35]}  Ne4 {[%clk 0:02:34]} 15. Bxe7 {[%clk 0:02:34]}  Qxe7 {[%clk 0:02:31]} 16. Bxe4 {[%clk 0:02:34]}  Qxe4 {[%clk 0:02:29]} 17. Qxe4 {[%clk 0:02:34]}  Rxe4 {[%clk 0:02:27]} 18. Nc5 {[%clk 0:02:34]}  Re7 {[%clk 0:02:26]} 19. Rbc1 {[%clk 0:02:33]}  g5 {[%clk 0:02:19]} 20. Rc3 {[%clk 0:02:30]}  Bf5 {[%clk 0:02:17]} 21. Rfc1 {[%clk 0:02:28]}  h5 {[%clk 0:02:11]} 22. Rb3 {[%clk 0:02:27]}  Ra7 {[%clk 0:02:07]} 23. a4 {[%clk 0:02:19]}  Kf7 {[%clk 0:02:03]} 24. Rb6 {[%clk 0:02:15]}  h4 {[%clk 0:01:57]} 25. Rc3 {[%clk 0:02:15]}  g4 {[%clk 0:01:55]} 26. Rcb3 {[%clk 0:02:14]}  Bc8 {[%clk 0:01:55]} 27. Nd3 {[%clk 0:02:13]}  Rc7 {[%clk 0:01:51]} 28. Ne5+ {[%clk 0:02:10]}  Kf6 {[%clk 0:01:50]} 29. Rc3 {[%clk 0:02:06]}  Kf5 {[%clk 0:01:48]} 30. Rb5 {[%clk 0:01:58]}  Re7 {[%clk 0:01:32]} 31. Rbc5 {[%clk 0:01:52]}  Be6 {[%clk 0:01:27]} 32. f3 {[%clk 0:01:43]}  gxf3 {[%clk 0:01:19]} 33. gxf3 {[%clk 0:01:43]}  g5 {[%clk 0:01:20]} 34. Kf2 {[%clk 0:01:42]}  Ra8 {[%clk 0:01:17]} 35. Rb3 {[%clk 0:01:39]}  Kf6 {[%clk 0:01:12]} 36. Ke2 {[%clk 0:01:32]}  Bf5 {[%clk 0:01:09]} 37. Kd2 {[%clk 0:01:18]}  Ke6 {[%clk 0:01:08]} 38. Rb6 {[%clk 0:01:04]}  Rc7 {[%clk 0:01:03]} 39. Rb3 {[%clk 0:00:59]}  Kd6 {[%clk 0:01:02]} 40. Rc1 {[%clk 0:00:54]}  Rg8 {[%clk 0:00:53]} 41. Rg1 {[%clk 0:00:53]}  Bc8 {[%clk 0:00:49]} 42. Rc3 {[%clk 0:00:49]}  Re7 {[%clk 0:00:47]} 43. Rcc1 {[%clk 0:00:44]}  Reg7 {[%clk 0:00:43]} 44. Rg2 {[%clk 0:00:42]}  Bh3 {[%clk 0:00:41]} 45. Rgg1 {[%clk 0:00:41]}  Bc8 {[%clk 0:00:41]} 46. Kc3 {[%clk 0:00:37]}  b6 {[%clk 0:00:40]} 47. Rc2 {[%clk 0:00:36]}  c5 {[%clk 0:00:39]} 48. Rcg2 {[%clk 0:00:34]}  Be6 {[%clk 0:00:37]} 49. h3 {[%clk 0:00:18]}  Ke7 {[%clk 0:00:32]} 50. Ng4 {[%clk 0:00:17]}  Rf8 {[%clk 0:00:29]} 51. Rf2 {[%clk 0:00:15]}  Rgf7 {[%clk 0:00:29]} 52. Ne5 {[%clk 0:00:15]}  Rg7 {[%clk 0:00:26]} 53. f4 {[%clk 0:00:12]}  Kd6 {[%clk 0:00:24]} 54. Rfg2 {[%clk 0:00:12]}  Bxh3 {[%clk 0:00:22]} 55. Rxg5 {[%clk 0:00:12]}  Rxg5 {[%clk 0:00:20]} 56. Rxg5 {[%clk 0:00:12]}  Bf5 {[%clk 0:00:20]} 57. Rh5 {[%clk 0:00:11]}  h3 {[%clk 0:00:20]} 58. Rh6+ {[%clk 0:00:11]}  Kc7 {[%clk 0:00:19]} 59. dxc5 {[%clk 0:00:09]}  bxc5 {[%clk 0:00:19]} 60. Nd3 {[%clk 0:00:06]}  Re8 {[%clk 0:00:12]} 61. Nxc5 {[%clk 0:00:05]}  Rxe3+ {[%clk 0:00:12]} 62. Kd4 {[%clk 0:00:05]}  Re2 {[%clk 0:00:08]} 63. Kxd5 {[%clk 0:00:04]}  h2 {[%clk 0:00:09]} 64. Na6+ {[%clk 0:00:02]}  Kb7 {[%clk 0:00:08]} 65. Nc5+ {[%clk 0:00:02]}  Kc7 {[%clk 0:00:08]} 66. Na6+ {[%clk 0:00:00]}  Kd8 {[%clk 0:00:09]} 0-1


[Site "https://www.chess.com"]